Workbook

Sheet Fraisière100
B8: DATE | C8: Mois | D8: Semaine | E8: Période
B9: 2016-04-01 | C9: P01 | D9: 14 | F9: 1802 | G9: 87 | H9: 535 | I9: =F9+G9+H9 -> 2424
B10: 2016-04-02 | C10: P01 | D10: 14 | I10: =F10+G10+H10 -> 0
B11: 2016-04-03 | C11: P01 | D11: 15 | I11: 0
B12: 2016-04-04 | C12: P01 | D12: 15 | I12: 0
B13: 2016-04-05 | C13: P01 | D13: 15 | I13: 0
B14: 2016-04-06 | C14: P01 | D14: 15 | I14: 0
B15: 2016-04-07 | C15: P01 | D15: 15 | I15: 0
B16: 2016-04-08 | C16: P01 | D16: 15 | I16: 0
B17: 2016-04-09 | C17: P01 | D17: 15 | I17: 0
B18: 2016-04-10 | C18: P01 | D18: 16 | I18: 0
B19: 2016-04-11 | C19: P01 | D19: 16 | I19: 0
B20: 2016-04-12 | C20: P01 | D20: 16 | I20: 0
B21: 2016-04-13 | C21: P01 | D21: 16 | I21: 0
B22: 2016-04-14 | C22: P01 | D22: 16 | I22: 0
B23: 2016-04-15 | C23: P01 | D23: 16 | I23: 0
B24: 2016-04-16 | C24: P01 | D24: 16 | I24: 0
B25: 2016-04-17 | C25: P01 | D25: 17 | I25: 0
B26: 2016-04-18 | C26: P01 | D26: 17 | I26: 0
B27: 2016-04-19 | C27: P01 | D27: 17 | I27: 0
B28: 2016-04-20 | C28: P01 | D28: 17 | I28: 0
B29: 2016-04-21 | C29: P01 | D29: 17 | I29: 0
B30: 2016-04-22 | C30: P01 | D30: 17 | I30: 0
B31: 2016-04-23 | C31: P01 | D31: 17 | I31: 0
B32: 2016-04-24 | C32: P01 | D32: 18 | I32: 0
B33: 2016-04-25 | C33: P01 | D33: 18 | F33: 1255 | G33: 1255 | H33: 1255 | I33: 3765
B34: 2016-04-26 | C34: P01 | D34: 18 | F34: 1255 | G34: 1255 | H34: 1255 | I34: 3765
B35: 2016-04-27 | C35: P01 | D35: 18 | F35: 1255 | G35: 1255 | H35: 1255 | I35: 3765
B36: 2016-04-28 | C36: P01 | D36: 18 | F36: 1255 | G36: 1255 | H36: 1255 | I36: 3765
B37: 2016-04-29 | C37: P01 | D37: 18 | F37: 1255 | G37: 1255 | H37: 1255 | I37: 3765
B38: 2016-04-30 | C38: P01 | D38: 18 | I38: 0
B39: 2016-05-01 | C39: P02 | D39: 19 | I39: =F39+G39+H39 -> 0
B40: 2016-05-02 | C40: P02 | D40: 19 | F40: 1200 | G40: 1200 | H40: 1200 | I40: 3600
B41: 2016-05-03 | C41: P02 | D41: 19 | F41: 1200 | G41: 1200 | H41: 1200 | I41: 3600
B42: 2016-05-04 | C42: P02 | D42: 19 | F42: 1200 | G42: 1200 | H42: 1200 | I42: 3600
B43: 2016-05-05 | C43: P02 | D43: 19 | F43: 1200 | G43: 1200 | H43: 1200 | I43: 3600
B44: 2016-05-06 | C44: P02 | D44: 19 | F44: 1200 | G44: 1200 | H44: 1200 | I44: 3600
B45: 2016-05-07 | C45: P02 | D45: 19 | I45: 0
B46: 2016-05-08 | C46: P02 | D46: 20 | I46: 0
B47: 2016-05-09 | C47: P02 | D47: 20 | F47: 2450 | G47: 2450 | H47: 2450 | I47: 7350
B48: 2016-05-10 | C48: P02 | D48: 20 | F48: 2450 | G48: 2450 | H48: 2450 | I48: 7350
B49: 2016-05-11 | C49: P02 | D49: 20 | F49: 2450 | G49: 2450 | H49: 2450 | I49: 7350
B50: 2016-05-12 | C50: P02 | D50: 20 | F50: 2450 | G50: 2450 | H50: 2450 | I50: 7350
B51: 2016-05-13 | C51: P02 | D51: 20 | F51: 2450 | G51: 2450 | H51: 2450 | I51: 7350
B52: 2016-05-14 | C52: P02 | D52: 20 | I52: 0
B53: 2016-05-15 | C53: P02 | D53: 21 | I53: 0
B54: 2016-05-16 | C54: P02 | D54: 21 | F54: 2000 | G54: 2000 | H54: 2000 | I54: 6000
B55: 2016-05-17 | C55: P02 | D55: 21 | F55: 2000 | G55: 2000 | H55: 2000 | I55: 6000
B56: 2016-05-18 | C56: P02 | D56: 21 | F56: 2000 | G56: 2000 | H56: 2000 | I56: 6000
B57: 2016-05-19 | C57: P02 | D57: 21 | F57: 2000 | G57: 2000 | H57: 2000 | I57: 6000
B58: 2016-05-20 | C58: P02 | D58: 21 | F58: 2000 | G58: 2000 | H58: 2000 | I58: 6000
B59: 2016-05-21 | C59: P02 | D59: 21 | I59: 0
B60: 2016-05-22 | C60: P02 | D60: 22 | I60: 0
B61: 2016-05-23 | C61: P02 | D61: 22 | I61: 0
B62: 2016-05-24 | C62: P02 | D62: 22 | F62: 125 | G62: 125 | H62: 125 | I62: 375
B63: 2016-05-25 | C63: P02 | D63: 22 | F63: 125 | G63: 125 | H63: 125 | I63: 375
B64: 2016-05-26 | C64: P02 | D64: 22 | F64: 125 | G64: 125 | H64: 125 | I64: 375
B65: 2016-05-27 | C65: P02 | D65: 22 | F65: 125 | G65: 125 | H65: 125 | I65: 375
B66: 2016-05-28 | C66: P02 | D66: 22 | I66: 0
B67: 2016-05-29 | C67: P02 | D67: 23 | I67: 0
B68: 2016-05-30 | C68: P02 | D68: 23 | F68: 2000 | G68: 2000 | H68: 2000 | I68: 6000
B69: 2016-05-31 | C69: P02 | D69: 23 | F69: 2000 | G69: 2000 | H69: 2000 | I69: 6000
B70: 2016-06-01 | C70: P03 | D70: 23 | F70: 2000 | G70: 2000 | H70: 2000 | I70: 6000 | L70: 0
B71: 2016-06-02 | C71: P03 | D71: 23 | F71: 2000 | G71: 2000 | H71: 2000 | I71: =F71+G71+H71 -> 6000
B72: 2016-06-03 | C72: P03 | D72: 23 | F72: 2000 | G72: 2000 | H72: 2000 | I72: 6000
B73: 2016-06-04 | C73: P03 | D73: 23 | F73: 2000 | G73: 2000 | H73: 2000 | I73: 6000
B74: 2016-06-05 | C74: P03 | D74: 24 | F74: 2000 | G74: 2000 | H74: 2000 | I74: 6000
B75: 2016-06-06 | C75: P03 | D75: 24 | F75: 2000 | G75: 2000 | H75: 2000 | I75: 6000
B76: 2016-06-07 | C76: P03 | D76: 24 | F76: 2000 | G76: 2000 | H76: 2000 | I76: 6000
B77: 2016-06-08 | C77: P03 | D77: 24 | F77: 2000 | G77: 2000 | H77: 2000 | I77: 6000
B78: 2016-06-09 | C78: P03 | D78: 24 | F78: 2000 | G78: 2000 | H78: 2000 | I78: 6000
B79: 2016-06-10 | C79: P03 | D79: 24 | F79: 2000 | G79: 2000 | H79: 2000 | I79: 6000
B80: 2016-06-11 | C80: P03 | D80: 24 | F80: 2000 | G80: 2000 | H80: 2000 | I80: 6000
B81: 2016-06-12 | C81: P03 | D81: 25 | F81: 2000 | G81: 2000 | H81: 2000 | I81: 6000
B82: 2016-06-13 | C82: P03 | D82: 25 | F82: 2000 | G82: 2000 | H82: 2000 | I82: 6000
B83: 2016-06-14 | C83: P03 | D83: 25 | F83: 2000 | G83: 2000 | H83: 2000 | I83: 6000
B84: 2016-06-15 | C84: P03 | D84: 25 | F84: 2000 | G84: 2000 | H84: 2000 | I84: 6000
B85: 2016-06-16 | C85: P03 | D85: 25 | F85: 2000 | G85: 2000 | H85: 2000 | I85: 6000
B86: 2016-06-17 | C86: P03 | D86: 25 | F86: 2000 | G86: 2000 | H86: 2000 | I86: 6000
B87: 2016-06-18 | C87: P03 | D87: 25 | F87: 2000 | G87: 2000 | H87: 2000 | I87: 6000
B88: 2016-06-19 | C88: P03 | D88: 26 | I88: 0
B89: 2016-06-20 | C89: P03 | D89: 26 | F89: 2596 | G89: 61 | H89: 665 | I89: 3322
B90: 2016-06-21 | C90: P03 | D90: 26 | F90: 3112 | G90: 102 | H90: 835 | I90: 4049
B91: 2016-06-22 | C91: P03 | D91: 26 | F91: 2388 | G91: 140 | H91: 697 | I91: 3225
B92: 2016-06-23 | C92: P03 | D92: 26 | F92: 2279 | G92: 140 | H92: 593 | I92: 3012
B93: 2016-06-24 | C93: P03 | D93: 26 | F93: 957 | H93: 274 | I93: 1231
B94: 2016-06-25 | C94: P03 | D94: 26 | I94: 0
B95: 2016-06-26 | C95: P03 | D95: 27 | I95: 0
B96: 2016-06-27 | C96: P03 | D96: 27 | F96: 1250 | G96: 1250 | H96: 1250 | I96: 3750
B97: 2016-06-28 | C97: P03 | D97: 27 | F97: 1250 | G97: 1250 | H97: 1250 | I97: 3750
B98: 2016-06-29 | C98: P03 | D98: 27 | F98: 1250 | G98: 1250 | H98: 1250 | I98: 3750
B99: 2016-06-30 | C99: P03 | D99: 27 | F99: 1250 | G99: 1250 | H99: 1250 | I99: 3750
B100: 2016-07-01 | C100: P04 | D100: 27 | F100: 1250 | G100: 1250 | H100: 1250 | I100: 3750
B101: 2016-07-02 | C101: P04 | D101: 27 | F101: 1250 | G101: 1250 | H101: 1250 | I101: =F101+G101+H101 -> 3750
B102: 2016-07-03 | C102: P04 | D102: 28 | F102: 1250 | G102: 1250 | H102: 1250 | I102: 3750
B103: 2016-07-04 | C103: P04 | D103: 28 | F103: 1250 | G103: 1250 | H103: 1250 | I103: 3750
B104: 2016-07-05 | C104: P04 | D104: 28 | F104: 1250 | G104: 1250 | H104: 1250 | I104: 3750
B105: 2016-07-06 | C105: P04 | D105: 28 | F105: 1250 | G105: 1250 | H105: 1250 | I105: 3750
B106: 2016-07-07 | C106: P04 | D106: 28 | F106: 1250 | G106: 1250 | H106: 1250 | I106: 3750
B107: 2016-07-08 | C107: P04 | D107: 28 | F107: 1250 | G107: 1250 | H107: 1250 | I107: 3750
B108: 2016-07-09 | C108: P04 | D108: 28 | F108: 1250 | G108: 1250 | H108: 1250 | I108: 3750
B109: 2016-07-10 | C109: P04 | D109: 29 | F109: 1250 | G109: 1250 | H109: 1250 | I109: 3750
B110: 2016-07-11 | C110: P04 | D110: 29 | F110: 1250 | G110: 1250 | H110: 1250 | I110: 3750
B111: 2016-07-12 | C111: P04 | D111: 29 | F111: 1250 | G111: 1250 | H111: 1250 | I111: 3750
B112: 2016-07-13 | C112: P04 | D112: 29 | F112: 1250 | G112: 1250 | H112: 1250 | I112: 3750
B113: 2016-07-14 | C113: P04 | D113: 29 | F113: 1250 | G113: 1250 | H113: 1250 | I113: 3750
B114: 2016-07-15 | C114: P04 | D114: 29 | F114: 1250 | G114: 1250 | H114: 1250 | I114: 3750
B115: 2016-07-16 | C115: P04 | D115: 29 | F115: 1250 | G115: 1250 | H115: 1250 | I115: 3750
B116: 2016-07-17 | C116: P04 | D116: 30 | F116: 1250 | G116: 1250 | H116: 1250 | I116: 3750
B117: 2016-07-18 | C117: P04 | D117: 30 | F117: 1250 | G117: 1250 | H117: 1250 | I117: 3750
B118: 2016-07-19 | C118: P04 | D118: 30 | F118: 1250 | G118: 1250 | H118: 1250 | I118: 3750
B119: 2016-07-20 | C119: P04 | D119: 30 | F119: 1250 | G119: 1250 | H119: 1250 | I119: 3750
B120: 2016-07-21 | C120: P04 | D120: 30 | F120: 1250 | G120: 1250 | H120: 1250 | I120: 3750
B121: 2016-07-22 | C121: P04 | D121: 30 | I121: 0
B122: 2016-07-23 | C122: P04 | D122: 30 | I122: 0
B123: 2016-07-24 | C123: P04 | D123: 31 | I123: 0
B124: 2016-07-25 | C124: P04 | D124: 31 | I124: 0
B125: 2016-07-26 | C125: P04 | D125: 31 | I125: 0
B126: 2016-07-27 | C126: P04 | D126: 31 | I126: 0
B127: 2016-07-28 | C127: P04 | D127: 31 | I127: 0
B128: 2016-07-29 | C128: P04 | D128: 31 | I128: 0
B129: 2016-07-30 | C129: P04 | D129: 31 | I129: 0
B130: 2016-07-31 | C130: P04 | D130: 32 | I130: 0
B131: 2016-08-01 | C131: P05 | D131: 32 | I131: 0
B132: 2016-08-02 | C132: P05 | D132: 32 | I132: 0
B133: 2016-08-03 | C133: P05 | D133: 32 | I133: 0
B134: 2016-08-04 | C134: P05 | D134: 32 | I134: 0
B135: 2016-08-05 | C135: P05 | D135: 32 | I135: 0
B136: 2016-08-06 | C136: P05 | D136: 32 | I136: 0
B137: 2016-08-07 | C137: P05 | D137: 33 | I137: 0
B138: 2016-08-08 | C138: P05 | D138: 33 | I138: =F138+G138+H138 -> 0
B139: 2016-08-09 | C139: P05 | D139: 33 | I139: 0
B140: 2016-08-10 | C140: P05 | D140: 33 | I140: 0
B141: 2016-08-11 | C141: P05 | D141: 33 | I141: 0
B142: 2016-08-12 | C142: P05 | D142: 33 | I142: 0
B143: 2016-08-13 | C143: P05 | D143: 33 | I143: 0
B144: 2016-08-14 | C144: P05 | D144: 34 | I144: 0
B145: 2016-08-15 | C145: P05 | D145: 34 | I145: 0
B146: 2016-08-16 | C146: P05 | D146: 34 | I146: 0
B147: 2016-08-17 | C147: P05 | D147: 34 | I147: 0
B148: 2016-08-18 | C148: P05 | D148: 34 | I148: 0
B149: 2016-08-19 | C149: P05 | D149: 34 | I149: 0
B150: 2016-08-20 | C150: P05 | D150: 34 | I150: 0
B151: 2016-08-21 | C151: P05 | D151: 35 | I151: 0
B152: 2016-08-22 | C152: P05 | D152: 35 | I152: 0
B153: 2016-08-23 | C153: P05 | D153: 35 | I153: 0
B154: 2016-08-24 | C154: P05 | D154: 35 | I154: 0
B155: 2016-08-25 | C155: P05 | D155: 35 | I155: 0
B156: 2016-08-26 | C156: P05 | D156: 35 | I156: 0
B157: 2016-08-27 | C157: P05 | D157: 35 | I157: 0
B158: 2016-08-28 | C158: P05 | D158: 36 | I158: 0
B159: 2016-08-29 | C159: P05 | D159: 36 | I159: 0
B160: 2016-08-30 | C160: P05 | D160: 36 | I160: 0
B161: 2016-08-31 | C161: P05 | D161: 36 | I161: 0
B162: 2016-09-01 | C162: P06 | D162: 36 | I162: 0
B163: 2016-09-02 | C163: P06 | D163: 36 | I163: 0
B164: 2016-09-03 | C164: P06 | D164: 36 | I164: 0
B165: 2016-09-04 | C165: P06 | D165: 37 | I165: 0
B166: 2016-09-05 | C166: P06 | D166: 37 | I166: 0
B167: 2016-09-06 | C167: P06 | D167: 37 | I167: 0
B168: 2016-09-07 | C168: P06 | D168: 37 | I168: 0
B169: 2016-09-08 | C169: P06 | D169: 37 | I169: 0
B170: 2016-09-09 | C170: P06 | D170: 37 | I170: 0
B171: 2016-09-10 | C171: P06 | D171: 37 | I171: 0
B172: 2016-09-11 | C172: P06 | D172: 38 | I172: 0
B173: 2016-09-12 | C173: P06 | D173: 38 | I173: 0
B174: 2016-09-13 | C174: P06 | D174: 38 | I174: 0
B175: 2016-09-14 | C175: P06 | D175: 38 | I175: 0
B176: 2016-09-15 | C176: P06 | D176: 38 | I176: 0
B177: 2016-09-16 | C177: P06 | D177: 38 | I177: 0
B178: 2016-09-17 | C178: P06 | D178: 38 | I178: 0
B179: 2016-09-18 | C179: P06 | D179: 39 | I179: 0
B180: 2016-09-19 | C180: P06 | D180: 39 | I180: 0
B181: 2016-09-20 | C181: P06 | D181: 39 | I181: 0
B182: 2016-09-21 | C182: P06 | D182: 39 | I182: 0
B183: 2016-09-22 | C183: P06 | D183: 39 | I183: 0
B184: 2016-09-23 | C184: P06 | D184: 39 | I184: 0
B185: 2016-09-24 | C185: P06 | D185: 39 | I185: 0
B186: 2016-09-25 | C186: P06 | D186: 40 | I186: 0
B187: 2016-09-26 | C187: P06 | D187: 40 | I187: 0
B188: 2016-09-27 | C188: P06 | D188: 40 | I188: 0
B189: 2016-09-28 | C189: P06 | D189: 40 | I189: 0
B190: 2016-09-29 | C190: P06 | D190: 40 | I190: 0
B191: 2016-09-30 | C191: P06 | D191: 40 | I191: 0
B192: 2016-10-01 | C192: P07 | D192: 40 | I192: 0
B193: 2016-10-02 | C193: P07 | D193: 41 | I193: 0
B194: 2016-10-03 | C194: P07 | D194: 41 | I194: 0
B195: 2016-10-04 | C195: P07 | D195: 41 | I195: 0
B196: 2016-10-05 | C196: P07 | D196: 41 | I196: 0
B197: 2016-10-06 | C197: P07 | D197: 41 | I197: 0
B198: 2016-10-07 | C198: P07 | D198: 41 | I198: 0
B199: 2016-10-08 | C199: P07 | D199: 41 | I199: 0
B200: 2016-10-09 | C200: P07 | D200: 42 | I200: 0
B201: 2016-10-10 | C201: P07 | D201: 42 | I201: 0
B202: 2016-10-11 | C202: P07 | D202: 42 | I202: =F202+G202+H202 -> 0
B203: 2016-10-12 | C203: P07 | D203: 42 | I203: 0
B204: 2016-10-13 | C204: P07 | D204: 42 | I204: 0
B205: 2016-10-14 | C205: P07 | D205: 42 | I205: 0
B206: 2016-10-15 | C206: P07 | D206: 42 | I206: 0
B207: 2016-10-16 | C207: P07 | D207: 43 | I207: 0
... 182 more rows
